{"text_format":"1","workbook":"xlsx","n_sheets":3,"sheets":["Modello 1","Modello 2","Modello 3"],"not_rendered":{"charts":0,"images":0,"macros":0,"external_links":1,"defined_names":34,"comments":0,"pivot_tables":0},"unopened":[],"bounds":{"document_bytes":16777216,"sheet_cells":100000,"rows_first":2000,"rows_last":500,"rows_between":2000,"halvings":0,"cell_chars":16384,"cell_head_chars":4096},"cells_cut":0,"cells_raw":0,"read":"whole","date_system":"1900"}

{"sheet":"Modello 1","index":0,"n_rows":39,"n_cols":19,"rows_kept":39,"cut":false,"hidden":false,"merged":[[7,1,7,18],[2,1,2,18],[3,1,3,18],[4,1,4,18],[5,1,5,18],[6,1,6,18],[25,1,25,18],[12,18,14,18],[13,5,14,5],[13,6,14,6],[13,7,14,7],[13,8,14,8],[13,9,14,9],[13,10,14,10],[13,12,14,12],[13,13,14,13],[13,14,14,14],[12,5,12,7],[12,8,12,10],[12,11,14,11],[12,12,12,14],[11,11,11,17],[12,4,14,4],[19,2,19,3],[20,2,20,3],[23,1,23,2],[12,15,12,17],[13,15,14,15],[15,2,15,3],[16,2,16,3],[17,2,17,3],[18,2,18,3],[11,4,11,10],[11,2,14,3],[26,1,26,10],[13,16,14,16],[13,17,14,17],[38,1,38,18],[27,1,27,10],[28,1,28,18],[29,1,29,2],[30,1,30,18],[31,1,31,10],[32,1,32,18],[33,1,33,10],[34,1,34,18],[35,1,35,18],[36,1,36,18],[37,1,37,18],[24,1,24,2]]}
[]
[null,"Modello 1. Informazioni su prestiti e anticipazioni soggetti a moratorie legislative e non legislative"]
[null,"Finalità: fornire una panoramica della qualità creditizia dei prestiti e delle anticipazioni soggetti a moratorie relative ai pagamenti dei prestiti applicate alla luce della crisi Covid-19, conformemente agli orientamenti EBA/GL/2020/02."]
[null,"Ambito di applicazione: il modello si applica a tutti agli enti creditizi soggetti a tutti o ad alcuni degli obblighi di informativa di cui alla parte otto del CRR, ai sensi degli articoli 6, 10 e 13 del medesimo."]
[null,"Contenuto: il valore contabile lordo dei prestiti e delle anticipazioni in bonis e deteriorati e le relative riduzione di valore accumulata e variazione accumulata del fair value (valore equo) dovuta al rischio di credito, secondo l’ambito di consolidamento regolamentare conformemente alla parte uno, titolo II, capo 2, del CRR. "]
[null,"Frequenza: semestrale."]
[null,"Formato: fisso."]
[null,"Descrizione di accompagnamento: gli enti dovrebbero spiegare il tipo di moratoria ammissibile concessa (ad es. proroga, sospensione o riduzione del capitale e/o degli interessi per un periodo di tempo limitato predefinito), i diversi settori e branche di attività economica in cui sono applicate le moratorie ammissibili, nonché le eventuali perdite economiche realizzate e le modalità di calcolo di tali perdite."]
[]
[null,"Modello 1. Informazioni su prestiti e anticipazioni soggetti a moratorie legislative e non legislative"]
[null,null,null,null,"a","b","c","d","e","f","g","h","i","j","k","l","m","n","o"]
[null,null,null,null,"Valore contabile lordo",null,null,null,null,null,null,"Riduzione di valore accumulata, variazioni negative accumulate del fair value (valore equo) dovute al rischio di credito ",null,null,null,null,null,null,"Valore contabile lordo "]
[null,null,null,null,null,"In bonis ",null,null,"Deteriorate ",null,null,null,"In bonis ",null,null,"Deteriorate ",null,null,"Afflussi nelle \nesposizioni deteriorate"]
[null,null,null,null,null,null,"Di cui: \nesposizioni oggetto di misure di «forbearance»","Di cui:\nstrumenti con un aumento significativo del rischio di credito dopo la rilevazione iniziale ma che non sono deteriorati (Fase 2)",null,"Di cui: \nesposizioni oggetto di misure di «forbearance»","Di cui:\ninadempienze probabili che non sono scadute o che sono scadute da non più di 90 giorni ",null,null,"Di cui: \nesposizioni oggetto di misure di «forbearance»","Di cui:\nstrumenti con un aumento significativo del rischio di credito dopo la rilevazione iniziale ma che non sono deteriorati (Fase 2)",null,"Di cui: \nesposizioni oggetto di misure di «forbearance»","Di cui:\ninadempienze probabili che non sono scadute o che sono scadute da non più di 90 giorni "]
[]
[null,1,"Prestiti e anticipazioni soggetti a moratoria",null,{"$f":"'[1]F 91.01.a'!D9","v":1927976},{"$f":"'[1]F 91.01.a'!E9","v":1927976},{"$f":"'[1]F 91.01.a'!G9","v":0},{"$f":"'[1]F 91.01.a'!H9","v":48730},{"$f":"'[1]F 91.01.a'!I9","v":0},{"$f":"'[1]F 91.01.a'!K9","v":0},{"$f":"'[1]F 91.01.a'!L9","v":0},{"$f":"'[1]F 91.01.a'!M9","v":-3333},{"$f":"'[1]F 91.01.a'!N9","v":-3333},{"$f":"'[1]F 91.01.a'!P9","v":0},{"$f":"'[1]F 91.01.a'!Q9","v":-536},{"$f":"'[1]F 91.01.a'!R9","v":0},{"$f":"'[1]F 91.01.a'!T9","v":0},{"$f":"'[1]F 91.01.a'!U9","v":0},{"$f":"'[1]F 91.01.a'!V9","v":0}]
[null,2,"di cui: a famiglie",null,{"$f":"'[1]F 91.01.a'!D10","v":253809},{"$f":"'[1]F 91.01.a'!E10","v":253809},{"$f":"'[1]F 91.01.a'!G10","v":0},{"$f":"'[1]F 91.01.a'!H10","v":48730},{"$f":"'[1]F 91.01.a'!I10","v":0},{"$f":"'[1]F 91.01.a'!K10","v":0},{"$f":"'[1]F 91.01.a'!L10","v":0},{"$f":"'[1]F 91.01.a'!M10","v":-771},{"$f":"'[1]F 91.01.a'!N10","v":-771},{"$f":"'[1]F 91.01.a'!P10","v":0},{"$f":"'[1]F 91.01.a'!Q10","v":-536},{"$f":"'[1]F 91.01.a'!R10","v":0},{"$f":"'[1]F 91.01.a'!T10","v":0},{"$f":"'[1]F 91.01.a'!U10","v":0},{"$f":"'[1]F 91.01.a'!V10","v":0}]
[null,3,"di cui: garantiti da beni immobili residenziali a titolo di garanzia reale",null,{"$f":"'[1]F 91.01.a'!D11","v":0},{"$f":"'[1]F 91.01.a'!E11","v":0},{"$f":"'[1]F 91.01.a'!G11","v":0},{"$f":"'[1]F 91.01.a'!H11","v":0},{"$f":"'[1]F 91.01.a'!I11","v":0},{"$f":"'[1]F 91.01.a'!K11","v":0},{"$f":"'[1]F 91.01.a'!L11","v":0},{"$f":"'[1]F 91.01.a'!M11","v":0},{"$f":"'[1]F 91.01.a'!N11","v":0},{"$f":"'[1]F 91.01.a'!P11","v":0},{"$f":"'[1]F 91.01.a'!Q11","v":0},{"$f":"'[1]F 91.01.a'!R11","v":0},{"$f":"'[1]F 91.01.a'!T11","v":0},{"$f":"'[1]F 91.01.a'!U11","v":0},{"$f":"'[1]F 91.01.a'!V11","v":0}]
[null,4,"di cui: a società non finanziarie",null,{"$f":"'[1]F 91.01.a'!D12","v":1674167},{"$f":"'[1]F 91.01.a'!E12","v":1674167},{"$f":"'[1]F 91.01.a'!G12","v":0},{"$f":"'[1]F 91.01.a'!H12","v":0},{"$f":"'[1]F 91.01.a'!I12","v":0},{"$f":"'[1]F 91.01.a'!K12","v":0},{"$f":"'[1]F 91.01.a'!L12","v":0},{"$f":"'[1]F 91.01.a'!M12","v":-2562},{"$f":"'[1]F 91.01.a'!N12","v":-2562},{"$f":"'[1]F 91.01.a'!P12","v":0},{"$f":"'[1]F 91.01.a'!Q12","v":0},{"$f":"'[1]F 91.01.a'!R12","v":0},{"$f":"'[1]F 91.01.a'!T12","v":0},{"$f":"'[1]F 91.01.a'!U12","v":0},{"$f":"'[1]F 91.01.a'!V12","v":0}]
[null,5,"di cui: a piccole e medie imprese",null,{"$f":"'[1]F 91.01.a'!D13","v":1674167},{"$f":"'[1]F 91.01.a'!E13","v":1674167},{"$f":"'[1]F 91.01.a'!G13","v":0},{"$f":"'[1]F 91.01.a'!H13","v":0},{"$f":"'[1]F 91.01.a'!I13","v":0},{"$f":"'[1]F 91.01.a'!K13","v":0},{"$f":"'[1]F 91.01.a'!L13","v":0},{"$f":"'[1]F 91.01.a'!M13","v":-2562},{"$f":"'[1]F 91.01.a'!N13","v":-2562},{"$f":"'[1]F 91.01.a'!P13","v":0},{"$f":"'[1]F 91.01.a'!Q13","v":0},{"$f":"'[1]F 91.01.a'!R13","v":0},{"$f":"'[1]F 91.01.a'!T13","v":0},{"$f":"'[1]F 91.01.a'!U13","v":0},{"$f":"'[1]F 91.01.a'!V13","v":0}]
[null,6,"di cui: garantiti da beni immobili non residenziali a titolo di garanzia reale",null,{"$f":"'[1]F 91.01.a'!D14","v":492005},{"$f":"'[1]F 91.01.a'!E14","v":492005},{"$f":"'[1]F 91.01.a'!G14","v":0},{"$f":"'[1]F 91.01.a'!H14","v":0},{"$f":"'[1]F 91.01.a'!I14","v":0},{"$f":"'[1]F 91.01.a'!K14","v":0},{"$f":"'[1]F 91.01.a'!L14","v":0},{"$f":"'[1]F 91.01.a'!M14","v":-1163},{"$f":"'[1]F 91.01.a'!N14","v":-1163},{"$f":"'[1]F 91.01.a'!P14","v":0},{"$f":"'[1]F 91.01.a'!Q14","v":0},{"$f":"'[1]F 91.01.a'!R14","v":0},{"$f":"'[1]F 91.01.a'!T14","v":0},{"$f":"'[1]F 91.01.a'!U14","v":0},{"$f":"'[1]F 91.01.a'!V14","v":0}]
[]
[]
[null,"Definizioni"]
[null,"Righe:"]
[null,"Moratoria: moratorie legislative e non legislative relative ai pagamenti dei prestiti applicate in risposta alla crisi Covid-19, conformemente agli orientamenti EBA/GL/2020/02."]
[null,"Disaggregazione della controparte: gli enti dovrebbero applicare la disaggregazione della controparte quale definita nell’allegato V, parte 1, punto 42, del regolamento di esecuzione (UE) n. 680/2014 della Commissione."]
[null,"L’assegnazione della controparte a un settore dovrebbe basarsi esclusivamente sulla natura della controparte immediata. La classificazione delle esposizioni assunte congiuntamente da più di un debitore dovrebbe essere eseguita sulla base delle caratteristiche del debitore che è stato più rilevante, o determinante, ai fini della decisione dell’ente di concedere l’esposizione. Tra le altre classificazioni, la distribuzione delle esposizioni contratte congiuntamente per settore della controparte, paese di residenza e codice NACE dovrebbe basarsi sulle caratteristiche del debitore più rilevante o determinante."]
[null,"Piccole e medie imprese: quali definite nell’allegato V, parte 1, punto 5, lettera i), del regolamento di esecuzione (UE) n. 680/2014 della Commissione."]
[null,"Colonne:"]
[null,"Valore contabile lordo: il valore contabile lordo quale definito nell’allegato V, parte 1, punto 34, del regolamento di esecuzione (UE) n. 680/2014 della Commissione."]
[null,"Esposizione oggetto di misure di «forbearance»: le esposizioni oggetto di misure di «forbearance» quali definite nell’allegato V, parte 2, punti da 240 a 244, del regolamento di esecuzione (UE) n. 680/2014 della Commissione. A seconda che le esposizioni oggetto di misure di «forbearance» soddisfino o meno le condizioni richieste di cui all’allegato V del suddetto regolamento, esse possono essere identificate come deteriorate o in bonis."]
[null,"Esposizioni deteriorate: quali definite nell’articolo 47 ter, paragrafo 3, del CRR, e nell’allegato V, parte 2, punti da 213 a 239, del regolamento di esecuzione (UE) n. 680/2014 della Commissione. "]
[null,"Esposizioni deteriorate oggetto di misure di «forbearance»: cfr. articolo 47 ter del CRR; allegato V, parte 1, punto 34, e parte 2, punti da 240 a 268, delle NTA.\nIn questa colonna dovrebbero essere segnalate le esposizioni soggette a moratorie conformi agli orientamenti dell’ABE che sono anche oggetto di altre misure di «forbearance» connesse alla crisi Covid-19."]
[null,"Esposizioni in stato di default: esposizioni che sono classificate come in stato di default ai sensi dell’articolo 178 del CRR."]
[null,"Riduzioni di valore accumulate, variazioni negative accumulate del fair value (valore equo) dovute al rischio di credito: dovrebbero essere inclusi qui gli importi determinati a norma dell’allegato V, parte 2, punti da 69 a 71, del regolamento di esecuzione (UE) n. 680/2014 della Commissione."]
[null,"Di cui fase 2: le categorie di riduzione di valore quali definite nell’IFRS 9.5.5. «Fase 2» si riferisce alla riduzione di valore misurata in conformità dell’IFRS 9.5.5.3.\nLe colonne «Di cui fase 2» non dovrebbero essere segnalate dagli enti che applicano principi contabili nazionali generalmente accettati sulla base della direttiva 86/635/CEE del Consiglio, dell’8 dicembre 1986, relativa ai conti annuali ed ai conti consolidati delle banche e degli altri istituti finanziari."]
[null,"La colonna «afflussi nelle esposizioni deteriorate» dovrebbe riflettere i valori lordi delle esposizioni, ossia non dovrebbe tener conto dei valori netti dovuti ai deflussi registrati nel periodo di informativa, e dovrebbe essere compilata su base semestrale a partire dalla fine della precedente data di informativa."]
[null,"Gli afflussi dovrebbero essere indicati su base semestrale dall’inizio del periodo di informativa fino alla data di riferimento.\nPer un’esposizione che viene riclassificata più volte da deteriorata a in bonis durante il periodo di informativa, l’importo degli afflussi dovrebbe essere identificato sulla base di un confronto tra lo stato dell’esposizione all’inizio del periodo di informativa e il suo stato alla data di riferimento.\nLa riclassificazione di un’esposizione deteriorata da un portafoglio contabile a un altro non dovrebbe essere indicata come afflusso."]

{"sheet":"Modello 2","index":1,"n_rows":38,"n_cols":12,"rows_kept":38,"cut":false,"hidden":false,"merged":[[11,2,15,2],[12,4,15,4],[13,11,15,11],[11,3,15,3],[12,5,15,5],[11,4,11,11],[12,6,15,6],[12,7,12,11],[13,7,15,7],[13,8,15,8],[13,9,15,9],[13,10,15,10],[24,1,24,4],[35,1,35,4],[36,1,36,10],[37,1,37,10],[25,1,25,2],[26,1,26,18],[33,1,33,18],[32,1,32,10],[27,1,27,10],[29,1,29,18],[28,1,28,18],[30,1,30,18],[31,1,31,18],[7,1,7,10],[2,1,2,10],[3,1,3,10],[4,1,4,10],[5,1,5,10],[6,1,6,10]]}
[]
[null,"Modello 2. Disaggregazione dei prestiti delle anticipazioni soggetti a moratorie legislative e non legislative per durata residua delle moratorie"]
[null,"Finalità: fornire una panoramica del volume dei prestiti e delle anticipazioni soggetti a moratorie legislative e non legislative conformi agli orientamenti EBA/GL/2020/02, disaggregati in base alla durata residua di tali moratorie."]
[null,"Ambito di applicazione: il modello si applica a tutti gli enti creditizi soggetti a tutti o ad alcuni degli obblighi di informativa di cui alla parte otto del CRR, ai sensi degli articoli 6, 10 e 13 del medesimo."]
[null,"Contenuto: il valore contabile lordo dei prestiti e delle anticipazioni presentato in base alla durata residua delle moratorie relative ai pagamenti dei prestiti secondo l’ambito di consolidamento regolamentare conformemente alla parte uno, titolo II, capo 2, del CRR. "]
[null,"Frequenza: semestrale."]
[null,"Formato: fisso."]
[null,"Descrizione di accompagnamento: gli enti dovrebbero spiegare la durata delle moratorie applicate e la revisione della durata (proroga) delle moratorie relative ai pagamenti dei prestiti. "]
[]
[null,"Modello 2. Disaggregazione dei prestiti delle anticipazioni soggetti a moratorie legislative e non legislative per durata residua delle moratorie"]
[null,null,null,"a","b","c","d","e","f","g","h","i"]
[null,null,null,"Numero di debitori","Valore contabile lordo"]
[null,null,null,null,null,"Di cui: \nmoratorie legislative","Di cui: \nscadute","Durata residua delle moratorie"]
[null,null,null,null,null,null,null,"<= 3 mesi","> 3 mesi\n<= 6 mesi","> 6 mesi\n<= 9 mesi","> 9 mesi\n<= 12 mesi","> 1 anno"]
[]
[]
[null,1,"Prestiti e anticipazioni per i quali è stata offerta una moratoria",{"$f":"'[1]F 90.01'!$D$9","v":136},{"$f":"'[1]F 90.01'!$F$9","v":62871968}]
[null,2,"Prestiti e anticipazioni soggetti a moratoria (concessa)",{"$f":"'[1]F 90.01'!$E$9","v":136},{"$f":"'[1]F 90.01'!G9","v":62871968},{"$f":"'[1]F 90.01'!H9","v":0},{"$f":"'[1]F 90.01'!J9","v":60943992},{"$f":"'[1]F 90.01'!K9","v":0},{"$f":"'[1]F 90.01'!L9","v":1927976},{"$f":"'[1]F 90.01'!M9","v":0},{"$f":"'[1]F 90.01'!N9","v":0},{"$f":"'[1]F 90.01'!O9+'[1]F 90.01'!P9","v":0}]
[null,3,"di cui: a famiglie",null,{"$f":"'[1]F 90.01'!G10","v":19818344},{"$f":"'[1]F 90.01'!H10","v":0},{"$f":"'[1]F 90.01'!J10","v":19564535},{"$f":"'[1]F 90.01'!K10","v":0},{"$f":"'[1]F 90.01'!L10","v":253809},{"$f":"'[1]F 90.01'!M10","v":0},{"$f":"'[1]F 90.01'!N10","v":0},{"$f":"'[1]F 90.01'!O10+'[1]F 90.01'!P10","v":0}]
[null,4,"    di cui: garantiti da beni immobili residenziali a titolo di garanzia reale",null,{"$f":"'[1]F 90.01'!G11","v":520160},{"$f":"'[1]F 90.01'!H11","v":0},{"$f":"'[1]F 90.01'!J11","v":520160},{"$f":"'[1]F 90.01'!K11","v":0},{"$f":"'[1]F 90.01'!L11","v":0},{"$f":"'[1]F 90.01'!M11","v":0},{"$f":"'[1]F 90.01'!N11","v":0},{"$f":"'[1]F 90.01'!O11+'[1]F 90.01'!P11","v":0}]
[null,5,"di cui: a società non finanziarie",null,{"$f":"'[1]F 90.01'!G12","v":43053624},{"$f":"'[1]F 90.01'!H12","v":0},{"$f":"'[1]F 90.01'!J12","v":41379457},{"$f":"'[1]F 90.01'!K12","v":0},{"$f":"'[1]F 90.01'!L12","v":1674167},{"$f":"'[1]F 90.01'!M12","v":0},{"$f":"'[1]F 90.01'!N12","v":0},{"$f":"'[1]F 90.01'!O12+'[1]F 90.01'!P12","v":0}]
[null,6,"    di cui: a piccole e medie imprese",null,{"$f":"'[1]F 90.01'!G13","v":42222705},{"$f":"'[1]F 90.01'!H13","v":0},{"$f":"'[1]F 90.01'!J13","v":40548538},{"$f":"'[1]F 90.01'!K13","v":0},{"$f":"'[1]F 90.01'!L13","v":1674167},{"$f":"'[1]F 90.01'!M13","v":0},{"$f":"'[1]F 90.01'!N13","v":0},{"$f":"'[1]F 90.01'!O13+'[1]F 90.01'!P13","v":0}]
[null,7,"    di cui: garantiti da beni immobili non residenziali a titolo di garanzia reale",null,{"$f":"'[1]F 90.01'!G14","v":16896813},{"$f":"'[1]F 90.01'!H14","v":0},{"$f":"'[1]F 90.01'!J14","v":16404808},{"$f":"'[1]F 90.01'!K14","v":0},{"$f":"'[1]F 90.01'!L14","v":492005},{"$f":"'[1]F 90.01'!M14","v":0},{"$f":"'[1]F 90.01'!N14","v":0},{"$f":"'[1]F 90.01'!O14+'[1]F 90.01'!P14","v":0}]
[]
[null,"Definizioni"]
[null,"Righe:"]
[null,"Moratoria: cfr. la definizione nel modello 1, «Informazioni su prestiti e anticipazioni soggetti a moratorie legislative e non legislative»."]
[null,"Prestiti e anticipazioni: cfr. allegato V, parte 1, punto 32, del regolamento di esecuzione (UE) n. 680/2014."]
[null,"Prestiti e anticipazioni per i quali è stata offerta una moratoria: come definiti nel paragrafo 19, lettera a), degli orientamenti EBA/GL/2020/02."]
[null,"In questa riga, per il numero di debitori (colonna a) o per il valore contabile lordo (colonna b), gli enti dovrebbero indicare il numero di richieste ricevute dai clienti o il corrispondente valore contabile lordo per le moratorie conformi agli orientamenti dell’ABE, indipendentemente dal fatto che la relativa moratoria sia già stata attuata. Laddove il numero di debitori aventi il diritto di chiedere una moratoria conforme agli orientamenti dell’ABE o il corrispondente valore contabile lordo non sono noti (ad esempio a causa delle specificità della moratoria), il numero dei debitori a cui è stata offerta la moratoria e il numero dei debitori a cui è stata applicata la moratoria possono essere uguali, e, analogamente, il valore contabile lordo della moratoria offerta e il valore contabile lordo a cui è stata applicata la moratoria possono essere uguali."]
[null,"Prestiti e anticipazioni soggetti a moratoria (concessa): come definiti nel paragrafo 19, lettera b), degli orientamenti EBA/GL/2020/02."]
[null,"In questa riga, per il numero di debitori (colonna a), gli enti dovrebbero indicare il numero di debitori le cui richieste di moratorie conformi agli orientamenti dell’ABE sono già state attuate."]
[null,"Disaggregazione della controparte: cfr. la definizione nel modello 1 «Informazioni su prestiti e anticipazioni soggetti a moratorie legislative e non legislative»."]
[null,"PMI: cfr. la definizione nel modello 1 «Informazioni su prestiti e anticipazioni soggetti a moratorie legislative e non legislative»."]
[]
[null,"Colonne:"]
[null,"Valore contabile lordo: cfr. la definizione nel modello 1 «Informazioni su prestiti e anticipazioni soggetti a moratorie legislative e non legislative». Nel caso del modello 2, il valore contabile lordo include non soltanto le moratorie conformi agli orientamenti dell’ABE ancora attive, ma anche quelle già scadute, ossia il valore contabile lordo dei prestiti e delle anticipazioni soggetti a moratorie conformi agli orientamenti dell’ABE che sono scadute alla data di riferimento (ossia la vita residua delle moratorie è pari a zero)."]
[null,"Durata residua delle moratorie: il tempo che intercorre tra la data di riferimento e la fine dell’applicazione delle moratorie (legislative e non legislative) relative ai pagamenti dei prestiti applicate conformemente agli orientamenti EBA/GL/2020/02."]

{"sheet":"Modello 3","index":2,"n_rows":32,"n_cols":7,"rows_kept":32,"cut":false,"hidden":false,"merged":[[26,1,26,4],[27,1,27,10],[31,1,31,10],[21,1,21,4],[11,3,11,4],[30,1,30,10],[2,1,2,7],[29,1,29,10],[28,1,28,10],[3,1,3,7],[4,1,4,7],[5,1,5,7],[6,1,6,7],[7,1,7,7],[24,1,24,10],[25,1,25,18],[23,1,23,10],[22,1,22,2]]}
[]
[null,"Modello 3. Informazioni su nuovi prestiti e anticipazioni soggetti a schemi di garanzia pubblica di nuova applicazione introdotti in risposta alla crisi Covid-19"]
[null,"Finalità: fornire una panoramica del volume di nuovi prestiti e anticipazioni soggetti a schemi di garanzia pubblica introdotti in risposta alla crisi Covid-19."]
[null,"Ambito di applicazione: il modello si applica a tutti agli enti creditizi soggetti a tutti o ad alcuni degli obblighi di informativa di cui alla parte otto del CRR, ai sensi degli articoli 6, 10 e 13 del medesimo."]
[null,"Contenuto: il valore contabile lordo dei prestiti e delle anticipazioni soggetti a schemi di garanzia pubblica connessi alla crisi Covid-19 secondo l’ambito di consolidamento regolamentare conformemente alla parte uno, titolo II, capo 2, del CRR. "]
[null,"Frequenza: semestrale."]
[null,"Formato: fisso."]
[null,"Descrizione di accompagnamento: gli enti dovrebbero spiegare l’entità, la durata e la copertura settoriale delle garanzie pubbliche, nonché lo stato di «in bonis», «oggetto di misure di «forbearance»» e «deteriorato» di questi nuovi prestiti. "]
[]
[null,"Modello 3. Informazioni su nuovi prestiti e anticipazioni soggetti a schemi di garanzia pubblica di nuova applicazione introdotti in risposta alla crisi Covid-19"]
[null,null,null,"a","b","c","d"]
[null,null,null,"Valore contabile lordo",null,"Importo massimo della garanzia che può essere considerato","Valore contabile lordo"]
[null,null,null,null,"di cui: oggetto di misure di «forbearance»","Garanzie pubbliche ricevute","Afflussi nelle \nesposizioni deteriorate"]
[null,1,"Nuovi prestiti e anticipazioni soggetti a schemi di garanzia pubblica",{"$f":"'[1]F 91.05.a'!D9","v":0},{"$f":"'[1]F 91.05.a'!$F$9+'[1]F 91.05.a'!$I$9","v":0},{"$f":"'[1]F 91.05.b'!$D$8","v":0},{"$f":"'[1]F 91.05.a'!R9","v":0}]
[null,2,"di cui: a famiglie",{"$f":"'[1]F 91.05.a'!D10","v":0},null,null,{"$f":"'[1]F 91.05.a'!R10","v":0}]
[null,3,"di cui: garantiti da beni immobili residenziali a titolo di garanzia reale",{"$f":"'[1]F 91.05.a'!D11","v":0},null,null,{"$f":"'[1]F 91.05.a'!R11","v":0}]
[null,4,"di cui: a società non finanziarie",{"$f":"'[1]F 91.05.a'!D12","v":0},{"$f":"'[1]F 91.05.a'!$F$12+'[1]F 91.05.a'!$I$12","v":0},{"$f":"'[1]F 91.05.b'!$D$11","v":0},{"$f":"'[1]F 91.05.a'!R12","v":0}]
[null,5,"di cui: a piccole e medie imprese",{"$f":"'[1]F 91.05.a'!D13","v":0},null,null,{"$f":"'[1]F 91.05.a'!R13","v":0}]
[null,6,"di cui: garantiti da beni immobili non residenziali a titolo di garanzia reale",{"$f":"'[1]F 91.05.a'!D14","v":0},null,null,{"$f":"'[1]F 91.05.a'!R14","v":0}]
[]
[]
[null,"Definizioni"]
[null,"Righe:"]
[null,"Nuovi prestiti e anticipazioni soggetti a schemi di garanzia pubblica: cfr. paragrafo 18 dei presenti orientamenti; allegato V, parte 1, punto 32, del regolamento di esecuzione (UE) n. 680/2014."]
[null,"Disaggregazione della controparte: cfr. la definizione nel modello 1 «Informazioni su prestiti e anticipazioni soggetti a moratorie legislative e non legislative»."]
[null,"PMI: cfr. la definizione nel modello 1 «Informazioni su prestiti e anticipazioni soggetti a moratorie legislative e non legislative»."]
[null,"Colonne:"]
[null,"Valore contabile lordo: cfr. la definizione nel modello 1 «Informazioni su prestiti e anticipazioni soggetti a moratorie legislative e non legislative»."]
[null,"di cui oggetto di misure di «forbearance»: cfr. articolo 47 ter del CRR; allegato V, parte 1, punto 34, e parte 2, punto 244, del regolamento di esecuzione (UE) n. 680/2014.\nSi dovrebbe indicare il valore contabile lordo del nuovo contratto («rifinanziamento del debito») concesso nell’ambito di un’operazione di rifinanziamento che si configura come misura di «forbearance»."]
[null,"Garanzie pubbliche ricevute: cfr. paragrafo 18 dei presenti orientamenti; allegato V, parte 2, punti 172 e 174, delle NTA"]
[null,"Gli enti dovrebbero indicare l’importo massimo della garanzia pubblica introdotta dagli Stati membri in risposta alla crisi Covid-19 per i nuovi prestiti e anticipazioni. L’importo della garanzia non dovrebbe superare il valore contabile lordo del relativo prestito. L’esistenza di altre forme di garanzia reale o di garanzia personale non dovrebbe essere presa in considerazione nel calcolare l’importo massimo della garanzia pubblica ricevuta nel contesto della crisi Covid-19 che può essere richiamato."]
[null,"Afflussi nelle esposizioni deteriorate: gli afflussi dovrebbero essere indicati su base semestrale dall’inizio del periodo di informativa fino alla data di riferimento.\nPer un’esposizione che viene riclassificata più volte da deteriorata a in bonis durante il periodo di informativa, l’importo degli afflussi deve essere identificato sulla base di un confronto tra lo stato dell’esposizione all’inizio del periodo di informativa e il suo stato alla data di riferimento. La riclassificazione di un’esposizione deteriorata da un portafoglio contabile a un altro non deve essere indicata come afflusso.\n"]